[Event "Titled Tuesday Blitz February 07 Late 2023"]
[White "Jimenez Almeida, Luis David"]
[Black "Gurevich, Ilya"]
[WhiteFideId "22242244"]
[BlackFideId "2000628"]
[WhiteElo "2242"]
[BlackElo "2586"]
[Result "1-0"]
[Round "09"]
[TimeControl "180+2"]
[Date "2023.02.07"]
[WhiteClock "0:00:50"]
[BlackClock "0:00:01"]

1. e4 {[%clk 0:03:00]}  c5 {[%clk 0:02:59]} 2. Nc3 {[%clk 0:02:59]}  Nc6 {[%clk 0:02:59]} 3. Nge2 {[%clk 0:02:59]}  e6 {[%clk 0:02:59]} 4. g3 {[%clk 0:02:59]}  d5 {[%clk 0:02:59]} 5. Bg2 {[%clk 0:02:59]}  d4 {[%clk 0:02:54]} 6. Nb1 {[%clk 0:02:59]}  e5 {[%clk 0:02:52]} 7. d3 {[%clk 0:02:59]}  Nf6 {[%clk 0:02:51]} 8. O-O {[%clk 0:02:54]}  Be7 {[%clk 0:02:48]} 9. a4 {[%clk 0:02:53]}  h5 {[%clk 0:02:46]} 10. h3 {[%clk 0:02:51]}  Be6 {[%clk 0:02:21]} 11. f4 {[%clk 0:02:50]}  Qc7 {[%clk 0:01:54]} 12. Na3 {[%clk 0:02:47]}  a6 {[%clk 0:01:49]} 13. f5 {[%clk 0:02:28]}  Bd7 {[%clk 0:01:48]} 14. Nc4 {[%clk 0:02:29]}  b6 {[%clk 0:01:34]} 15. c3 {[%clk 0:02:27]}  Rb8 {[%clk 0:01:30]} 16. Qc2 {[%clk 0:02:03]}  b5 {[%clk 0:01:00]} 17. axb5 {[%clk 0:02:01]}  axb5 {[%clk 0:01:01]} 18. Na3 {[%clk 0:02:01]}  Qb6 {[%clk 0:00:46]} 19. Bd2 {[%clk 0:01:56]}  h4 {[%clk 0:00:29]} 20. g4 {[%clk 0:01:55]}  Nh7 {[%clk 0:00:29]} 21. Qc1 {[%clk 0:01:50]}  dxc3 {[%clk 0:00:21]} 22. Nxc3 {[%clk 0:01:45]}  c4+ {[%clk 0:00:13]} 23. Kh1 {[%clk 0:01:33]}  cxd3 {[%clk 0:00:13]} 24. Nd5 {[%clk 0:01:33]}  Qd4 {[%clk 0:00:11]} 25. Be3 {[%clk 0:01:27]}  Qa4 {[%clk 0:00:07]} 26. Nxb5 {[%clk 0:01:24]}  Qb3 {[%clk 0:00:03]} 27. Nbc7+ {[%clk 0:01:11]}  Kd8 {[%clk 0:00:03]} 28. Na6 {[%clk 0:00:52]}  Ra8 {[%clk 0:00:01]} 29. Nc5 {[%clk 0:00:50]} 1-0


[Site "https://www.chess.com"]

[Event "Titled Tuesday Blitz February 07 Late 2023"]
[White "Bjelobrk, Igor"]
[Black "Toktomushev, Teimur"]
[WhiteFideId "4300726"]
[BlackFideId "14176726"]
[WhiteElo "2403"]
[BlackElo "2239"]
[Result "0-1"]
[Round "09"]
[TimeControl "180+2"]
[Date "2023.02.07"]
[WhiteClock "0:00:35"]
[BlackClock "0:00:04"]

1. d4 {[%clk 0:03:00]}  d5 {[%clk 0:02:54]} 2. c4 {[%clk 0:03:00]}  e6 {[%clk 0:02:54]} 3. g3 {[%clk 0:02:59]}  Nf6 {[%clk 0:02:54]} 4. Bg2 {[%clk 0:02:58]}  Bb4+ {[%clk 0:02:50]} 5. Nd2 {[%clk 0:02:57]}  O-O {[%clk 0:02:48]} 6. a3 {[%clk 0:02:56]}  Bxd2+ {[%clk 0:02:45]} 7. Qxd2 {[%clk 0:02:53]}  Nbd7 {[%clk 0:02:34]} 8. Nf3 {[%clk 0:02:52]}  b6 {[%clk 0:02:20]} 9. cxd5 {[%clk 0:02:51]}  Nxd5 {[%clk 0:02:11]} 10. O-O {[%clk 0:02:47]}  Bb7 {[%clk 0:02:11]} 11. Qc2 {[%clk 0:02:40]}  c5 {[%clk 0:02:05]} 12. dxc5 {[%clk 0:02:36]}  Rc8 {[%clk 0:02:02]} 13. b4 {[%clk 0:02:33]}  bxc5 {[%clk 0:01:50]} 14. b5 {[%clk 0:02:32]}  h6 {[%clk 0:01:21]} 15. e4 {[%clk 0:02:30]}  N5f6 {[%clk 0:01:15]} 16. Re1 {[%clk 0:02:25]}  c4 {[%clk 0:01:10]} 17. e5 {[%clk 0:02:20]}  Nd5 {[%clk 0:01:00]} 18. Qe4 {[%clk 0:02:19]}  Nc5 {[%clk 0:00:54]} 19. Qxc4 {[%clk 0:02:14]}  Qa5 {[%clk 0:00:32]} 20. Bd2 {[%clk 0:01:51]}  Qb6 {[%clk 0:00:07]} 21. Qg4 {[%clk 0:01:44]}  Nd3 {[%clk 0:00:04]} 22. Bxh6 {[%clk 0:01:38]}  Qxf2+ {[%clk 0:00:04]} 23. Kh1 {[%clk 0:01:38]}  Qxe1+ {[%clk 0:00:05]} 24. Rxe1 {[%clk 0:01:24]}  Nf2+ {[%clk 0:00:06]} 25. Kg1 {[%clk 0:01:24]}  Nxg4 {[%clk 0:00:06]} 26. Bd2 {[%clk 0:01:15]}  Rc2 {[%clk 0:00:06]} 27. a4 {[%clk 0:01:09]}  Nb6 {[%clk 0:00:03]} 28. Bb4 {[%clk 0:01:01]}  Rd8 {[%clk 0:00:03]} 29. a5 {[%clk 0:01:00]}  Nc4 {[%clk 0:00:04]} 30. a6 {[%clk 0:00:55]}  Ba8 {[%clk 0:00:04]} 31. Bc5 {[%clk 0:00:46]}  Bxf3 {[%clk 0:00:03]} 32. Bxf3 {[%clk 0:00:45]}  Ncxe5 {[%clk 0:00:03]} 33. Bxg4 {[%clk 0:00:43]}  Rxc5 {[%clk 0:00:03]} 34. Be2 {[%clk 0:00:42]}  Rb8 {[%clk 0:00:03]} 35. Rd1 {[%clk 0:00:38]}  Rcxb5 {[%clk 0:00:03]} 36. Bxb5 {[%clk 0:00:37]}  Rxb5 {[%clk 0:00:04]} 37. Rd8+ {[%clk 0:00:35]}  Kh7 {[%clk 0:00:04]} 38. Ra8 {[%clk 0:00:36]}  Nc6 {[%clk 0:00:03]} 39. Rc8 {[%clk 0:00:35]}  Rb6 {[%clk 0:00:04]} 40. Rc7 {[%clk 0:00:35]}  Kg6 {[%clk 0:00:04]} 0-1


[Site "https://www.chess.com"]

[Event "Titled Tuesday Blitz February 07 Late 2023"]
[White "Cuenca Jimenez, Jose Fernando"]
[Black "Melikhov, Evgeny V."]
[WhiteFideId "2255570"]
[BlackFideId "4122046"]
[WhiteElo "2535"]
[BlackElo "2269"]
[Result "1-0"]
[Round "09"]
[TimeControl "180+2"]
[Date "2023.02.07"]
[WhiteClock "0:00:05"]
[BlackClock "0:00:06"]

1. d4 {[%clk 0:03:00]}  Nf6 {[%clk 0:02:58]} 2. c4 {[%clk 0:03:00]}  e6 {[%clk 0:02:59]} 3. Nf3 {[%clk 0:03:00]}  d5 {[%clk 0:02:58]} 4. Nc3 {[%clk 0:03:00]}  Bb4 {[%clk 0:02:58]} 5. cxd5 {[%clk 0:02:59]}  exd5 {[%clk 0:02:58]} 6. Bg5 {[%clk 0:03:00]}  h6 {[%clk 0:02:58]} 7. Bh4 {[%clk 0:02:59]}  c5 {[%clk 0:02:58]} 8. dxc5 {[%clk 0:02:52]}  g5 {[%clk 0:02:55]} 9. Bg3 {[%clk 0:02:51]}  Qa5 {[%clk 0:02:55]} 10. Be5 {[%clk 0:02:29]}  Nbd7 {[%clk 0:02:53]} 11. Bd4 {[%clk 0:02:29]}  Bxc5 {[%clk 0:02:47]} 12. e3 {[%clk 0:02:25]}  Bxd4 {[%clk 0:02:44]} 13. Qxd4 {[%clk 0:02:23]}  Qc5 {[%clk 0:02:41]} 14. Bb5 {[%clk 0:02:17]}  Qxd4 {[%clk 0:02:38]} 15. Nxd4 {[%clk 0:02:18]}  a6 {[%clk 0:02:37]} 16. Bxd7+ {[%clk 0:02:16]}  Bxd7 {[%clk 0:02:36]} 17. O-O {[%clk 0:02:09]}  Be6 {[%clk 0:02:34]} 18. Rac1 {[%clk 0:02:03]}  Ke7 {[%clk 0:02:25]} 19. Na4 {[%clk 0:02:03]}  Ne4 {[%clk 0:01:56]} 20. Rc7+ {[%clk 0:01:50]}  Kd6 {[%clk 0:01:55]} 21. Rxb7 {[%clk 0:01:47]}  Rhb8 {[%clk 0:01:48]} 22. Rxb8 {[%clk 0:01:46]}  Rxb8 {[%clk 0:01:48]} 23. Rc1 {[%clk 0:01:46]}  Rc8 {[%clk 0:01:37]} 24. Rxc8 {[%clk 0:01:43]}  Bxc8 {[%clk 0:01:37]} 25. f3 {[%clk 0:01:43]}  Nd2 {[%clk 0:01:36]} 26. b3 {[%clk 0:01:33]}  Nb1 {[%clk 0:01:29]} 27. Kf2 {[%clk 0:01:29]}  Bd7 {[%clk 0:01:29]} 28. Nb2 {[%clk 0:01:24]}  Na3 {[%clk 0:01:18]} 29. Ke2 {[%clk 0:01:20]}  Bb5+ {[%clk 0:01:00]} 30. Kd2 {[%clk 0:01:17]}  Bf1 {[%clk 0:00:58]} 31. g3 {[%clk 0:01:17]}  Kc5 {[%clk 0:00:57]} 32. Na4+ {[%clk 0:01:04]}  Kb4 {[%clk 0:00:33]} 33. Nc3 {[%clk 0:00:50]}  Kc5 {[%clk 0:00:21]} 34. h4 {[%clk 0:00:47]}  gxh4 {[%clk 0:00:20]} 35. gxh4 {[%clk 0:00:48]}  a5 {[%clk 0:00:17]} 36. Nf5 {[%clk 0:00:47]}  Bg2 {[%clk 0:00:15]} 37. Ke2 {[%clk 0:00:46]}  Nc2 {[%clk 0:00:10]} 38. Nxh6 {[%clk 0:00:44]}  d4 {[%clk 0:00:10]} 39. Ne4+ {[%clk 0:00:40]}  Kd5 {[%clk 0:00:09]} 40. exd4 {[%clk 0:00:27]}  Nxd4+ {[%clk 0:00:09]} 41. Ke3 {[%clk 0:00:27]}  Bxf3 {[%clk 0:00:09]} 42. Nc3+ {[%clk 0:00:24]}  Kc5 {[%clk 0:00:08]} 43. Nxf7 {[%clk 0:00:24]}  Bh5 {[%clk 0:00:08]} 44. Ne5 {[%clk 0:00:21]}  Nf5+ {[%clk 0:00:08]} 45. Kf4 {[%clk 0:00:17]}  Nxh4 {[%clk 0:00:09]} 46. Nd3+ {[%clk 0:00:12]}  Kd4 {[%clk 0:00:08]} 47. Nb2 {[%clk 0:00:03]}  Kxc3 {[%clk 0:00:08]} 48. Nc4 {[%clk 0:00:04]}  Bf7 {[%clk 0:00:07]} 49. Nxa5 {[%clk 0:00:04]}  Kb4 {[%clk 0:00:07]} 50. Nc6+ {[%clk 0:00:02]}  Ka3 {[%clk 0:00:08]} 51. b4 {[%clk 0:00:03]}  Bxa2 {[%clk 0:00:07]} 52. b5 {[%clk 0:00:03]}  Bd5 {[%clk 0:00:07]} 53. Ke5 {[%clk 0:00:04]}  Bg2 {[%clk 0:00:07]} 54. Kd6 {[%clk 0:00:04]}  Ng6 {[%clk 0:00:07]} 55. b6 {[%clk 0:00:04]}  Ne7 {[%clk 0:00:05]} 56. Nxe7 {[%clk 0:00:03]}  Ka4 {[%clk 0:00:05]} 57. Kc7 {[%clk 0:00:03]}  Ka5 {[%clk 0:00:05]} 58. Nc6+ {[%clk 0:00:03]}  Kb5 {[%clk 0:00:05]} 59. b7 {[%clk 0:00:03]}  Bxc6 {[%clk 0:00:06]} 60. b8=Q+ {[%clk 0:00:04]}  Kc5 {[%clk 0:00:06]} 61. Qb6+ {[%clk 0:00:04]}  Kc4 {[%clk 0:00:06]} 62. Qxc6+ {[%clk 0:00:05]} 1-0


[Site "https://www.chess.com"]

[Event "Titled Tuesday Blitz February 07 Late 2023"]
[White "Sadovsky, Artem"]
[Black "Kalajzic, Ivan"]
[WhiteFideId "4155840"]
[BlackFideId "14506378"]
[WhiteElo "2276"]
[BlackElo "2062"]
[Result "1-0"]
[Round "09"]
[TimeControl "180+2"]
[Date "2023.02.07"]
[WhiteClock "0:00:22"]
[BlackClock "0:00:01"]

1. Nf3 {[%clk 0:02:52]}  Nc6 {[%clk 0:02:59]} 2. e3 {[%clk 0:02:42]}  e5 {[%clk 0:02:58]} 3. d4 {[%clk 0:02:42]}  g6 {[%clk 0:02:29]} 4. d5 {[%clk 0:02:26]}  e4 {[%clk 0:02:22]} 5. Nfd2 {[%clk 0:02:12]}  Nb8 {[%clk 0:01:46]} 6. Nxe4 {[%clk 0:02:09]}  Bg7 {[%clk 0:01:47]} 7. d6 {[%clk 0:02:04]}  Nf6 {[%clk 0:01:45]} 8. dxc7 {[%clk 0:02:02]}  Qxc7 {[%clk 0:01:37]} 9. Nd6+ {[%clk 0:02:03]}  Kf8 {[%clk 0:01:36]} 10. Nc3 {[%clk 0:01:48]}  a6 {[%clk 0:01:34]} 11. Nxc8 {[%clk 0:01:42]}  Qxc8 {[%clk 0:01:34]} 12. Qd6+ {[%clk 0:01:42]}  Kg8 {[%clk 0:01:33]} 13. Bd2 {[%clk 0:01:42]}  Nc6 {[%clk 0:01:22]} 14. Be2 {[%clk 0:01:25]}  Qb8 {[%clk 0:01:22]} 15. Qxb8+ {[%clk 0:01:21]}  Rxb8 {[%clk 0:01:23]} 16. O-O-O {[%clk 0:01:13]}  h6 {[%clk 0:01:12]} 17. e4 {[%clk 0:01:02]}  Kh7 {[%clk 0:01:10]} 18. f4 {[%clk 0:01:00]}  d6 {[%clk 0:01:01]} 19. Bf3 {[%clk 0:00:54]}  Nd4 {[%clk 0:00:58]} 20. Be3 {[%clk 0:00:54]}  Nxf3 {[%clk 0:00:58]} 21. gxf3 {[%clk 0:00:55]}  Rhd8 {[%clk 0:00:55]} 22. Bb6 {[%clk 0:00:45]}  Rd7 {[%clk 0:00:55]} 23. Bd4 {[%clk 0:00:44]}  b5 {[%clk 0:00:52]} 24. Rd3 {[%clk 0:00:41]}  b4 {[%clk 0:00:49]} 25. Bxf6 {[%clk 0:00:41]}  Bxf6 {[%clk 0:00:43]} 26. Nd5 {[%clk 0:00:42]}  Bd8 {[%clk 0:00:41]} 27. Rhd1 {[%clk 0:00:41]}  a5 {[%clk 0:00:39]} 28. Ne3 {[%clk 0:00:34]}  Be7 {[%clk 0:00:36]} 29. Nc4 {[%clk 0:00:31]}  a4 {[%clk 0:00:23]} 30. Nxd6 {[%clk 0:00:31]}  a3 {[%clk 0:00:21]} 31. b3 {[%clk 0:00:28]}  Kg8 {[%clk 0:00:19]} 32. Nc4 {[%clk 0:00:28]}  Rxd3 {[%clk 0:00:16]} 33. cxd3 {[%clk 0:00:28]}  Bh4 {[%clk 0:00:13]} 34. d4 {[%clk 0:00:27]}  Bf2 {[%clk 0:00:12]} 35. d5 {[%clk 0:00:27]}  Kf8 {[%clk 0:00:09]} 36. d6 {[%clk 0:00:25]}  Rd8 {[%clk 0:00:08]} 37. Kc2 {[%clk 0:00:24]}  f6 {[%clk 0:00:06]} 38. e5 {[%clk 0:00:24]}  Kf7 {[%clk 0:00:06]} 39. Rd2 {[%clk 0:00:21]}  Bc5 {[%clk 0:00:05]} 40. Re2 {[%clk 0:00:21]}  Ke6 {[%clk 0:00:04]} 41. Kd3 {[%clk 0:00:22]}  f5 {[%clk 0:00:01]} 42. Rg2 {[%clk 0:00:22]} 1-0


[Site "https://www.chess.com"]

[Event "Titled Tuesday Blitz February 07 Late 2023"]
[White "Miszler, Levente"]
[Black "Yedidia, Daniel"]
[WhiteFideId "763276"]
[BlackFideId "30905907"]
[WhiteElo "2271"]
[BlackElo "2041"]
[Result "1/2-1/2"]
[Round "09"]
[TimeControl "180+2"]
[Date "2023.02.07"]
[WhiteClock "0:00:17"]
[BlackClock "0:00:03"]

1. Nf3 {[%clk 0:03:00]}  Nf6 {[%clk 0:02:59]} 2. c4 {[%clk 0:03:01]}  Nc6 {[%clk 0:02:54]} 3. Nc3 {[%clk 0:02:58]}  e5 {[%clk 0:02:54]} 4. d3 {[%clk 0:02:54]}  Bb4 {[%clk 0:02:52]} 5. Bd2 {[%clk 0:02:52]}  d5 {[%clk 0:02:50]} 6. Nxd5 {[%clk 0:02:49]}  Bxd2+ {[%clk 0:02:49]} 7. Qxd2 {[%clk 0:02:50]}  Nxd5 {[%clk 0:02:49]} 8. cxd5 {[%clk 0:02:51]}  Qxd5 {[%clk 0:02:50]} 9. g3 {[%clk 0:02:51]}  Be6 {[%clk 0:02:47]} 10. Bg2 {[%clk 0:02:51]}  Qd6 {[%clk 0:02:44]} 11. O-O {[%clk 0:02:50]}  Rd8 {[%clk 0:02:39]} 12. Qc3 {[%clk 0:02:50]}  f6 {[%clk 0:02:37]} 13. Rac1 {[%clk 0:02:39]}  Bd5 {[%clk 0:02:33]} 14. b3 {[%clk 0:02:33]}  O-O {[%clk 0:02:13]} 15. Rfd1 {[%clk 0:02:28]}  Rd7 {[%clk 0:02:09]} 16. e3 {[%clk 0:02:27]}  Be6 {[%clk 0:02:07]} 17. d4 {[%clk 0:02:25]}  e4 {[%clk 0:02:01]} 18. Nd2 {[%clk 0:02:18]}  f5 {[%clk 0:01:58]} 19. Nc4 {[%clk 0:02:09]}  Bxc4 {[%clk 0:01:52]} 20. bxc4 {[%clk 0:02:08]}  Qb4 {[%clk 0:01:52]} 21. Qxb4 {[%clk 0:01:53]}  Nxb4 {[%clk 0:01:53]} 22. f3 {[%clk 0:01:54]}  Nxa2 {[%clk 0:01:48]} 23. Ra1 {[%clk 0:01:53]}  Nc3 {[%clk 0:01:45]} 24. Rd2 {[%clk 0:01:49]}  exf3 {[%clk 0:01:32]} 25. Bxf3 {[%clk 0:01:50]}  b6 {[%clk 0:01:23]} 26. Rxa7 {[%clk 0:01:46]}  Re7 {[%clk 0:01:13]} 27. Kf2 {[%clk 0:01:44]}  g5 {[%clk 0:01:11]} 28. Rc2 {[%clk 0:01:40]}  Ne4+ {[%clk 0:01:08]} 29. Bxe4 {[%clk 0:01:39]}  fxe4+ {[%clk 0:01:09]} 30. Kg2 {[%clk 0:01:36]}  Rf3 {[%clk 0:01:09]} 31. c5 {[%clk 0:01:31]}  bxc5 {[%clk 0:00:56]} 32. Rxc5 {[%clk 0:01:30]}  h6 {[%clk 0:00:43]} 33. Rcxc7 {[%clk 0:01:25]}  Rxc7 {[%clk 0:00:43]} 34. Rxc7 {[%clk 0:01:25]}  Rxe3 {[%clk 0:00:43]} 35. Re7 {[%clk 0:01:25]}  Kf8 {[%clk 0:00:43]} 36. Re5 {[%clk 0:01:25]}  Kg7 {[%clk 0:00:43]} 37. d5 {[%clk 0:01:24]}  Re2+ {[%clk 0:00:38]} 38. Kg1 {[%clk 0:01:22]}  Kf6 {[%clk 0:00:30]} 39. Re6+ {[%clk 0:01:10]}  Kf5 {[%clk 0:00:29]} 40. Rxh6 {[%clk 0:01:10]}  e3 {[%clk 0:00:26]} 41. d6 {[%clk 0:01:05]}  Kg4 {[%clk 0:00:18]} 42. d7 {[%clk 0:00:37]}  Rd2 {[%clk 0:00:18]} 43. Kf1 {[%clk 0:00:30]}  Rxd7 {[%clk 0:00:09]} 44. Ke2 {[%clk 0:00:30]}  Re7 {[%clk 0:00:10]} 45. h4 {[%clk 0:00:20]}  gxh4 {[%clk 0:00:03]} 46. gxh4 {[%clk 0:00:20]}  Kf4 {[%clk 0:00:04]} 47. Rh8 {[%clk 0:00:20]}  Rg7 {[%clk 0:00:04]} 48. Rf8+ {[%clk 0:00:19]}  Kg4 {[%clk 0:00:02]} 49. Kxe3 {[%clk 0:00:17]}  Kxh4 {[%clk 0:00:03]} 50. Rf4+ {[%clk 0:00:17]}  Rg4 {[%clk 0:00:03]} 1/2-1/2


[Site "https://www.chess.com"]

[Event "Titled Tuesday Blitz February 07 Late 2023"]
[White "reevecanada"]
[Black "Gomes, Luiz Alexandre de Souza"]
[BlackFideId "2102790"]
[WhiteElo "2474"]
[BlackElo "2254"]
[Result "1/2-1/2"]
[Round "09"]
[TimeControl "180+2"]
[Date "2023.02.07"]
[WhiteClock "0:01:39"]
[BlackClock "0:00:17"]

1. e4 {[%clk 0:03:00]}  c5 {[%clk 0:02:59]} 2. Nf3 {[%clk 0:03:00]}  d6 {[%clk 0:02:59]} 3. Bb5+ {[%clk 0:03:00]}  Nd7 {[%clk 0:02:59]} 4. Bxd7+ {[%clk 0:03:01]}  Bxd7 {[%clk 0:02:59]} 5. O-O {[%clk 0:03:02]}  e6 {[%clk 0:02:59]} 6. b3 {[%clk 0:03:01]}  Nf6 {[%clk 0:02:59]} 7. Bb2 {[%clk 0:03:02]}  Be7 {[%clk 0:02:59]} 8. e5 {[%clk 0:03:01]}  dxe5 {[%clk 0:02:59]} 9. Nxe5 {[%clk 0:03:02]}  O-O {[%clk 0:02:59]} 10. Nc3 {[%clk 0:03:02]}  Qc7 {[%clk 0:02:53]} 11. Re1 {[%clk 0:03:01]}  Rfd8 {[%clk 0:02:51]} 12. Ne4 {[%clk 0:03:01]}  Nxe4 {[%clk 0:02:50]} 13. Rxe4 {[%clk 0:03:00]}  Bc6 {[%clk 0:02:49]} 14. Rg4 {[%clk 0:02:59]}  g6 {[%clk 0:02:46]} 15. Nxc6 {[%clk 0:02:53]}  Qxc6 {[%clk 0:02:45]} 16. Qe2 {[%clk 0:02:53]}  Qd5 {[%clk 0:02:40]} 17. Rd1 {[%clk 0:02:51]}  Bf8 {[%clk 0:02:38]} 18. d4 {[%clk 0:02:51]}  Bg7 {[%clk 0:02:37]} 19. c4 {[%clk 0:02:50]}  Qf5 {[%clk 0:02:35]} 20. h3 {[%clk 0:02:47]}  h5 {[%clk 0:02:24]} 21. Re4 {[%clk 0:02:45]}  Rd7 {[%clk 0:02:06]} 22. Rd3 {[%clk 0:02:37]}  cxd4 {[%clk 0:01:52]} 23. Bxd4 {[%clk 0:02:35]}  Rad8 {[%clk 0:01:51]} 24. Rf3 {[%clk 0:02:33]}  Qa5 {[%clk 0:01:35]} 25. Bxg7 {[%clk 0:02:30]}  Kxg7 {[%clk 0:01:35]} 26. Qb2+ {[%clk 0:02:30]}  Kg8 {[%clk 0:01:33]} 27. Ref4 {[%clk 0:02:25]}  Qc7 {[%clk 0:01:26]} 28. g3 {[%clk 0:02:24]}  e5 {[%clk 0:01:20]} 29. Re4 {[%clk 0:02:21]}  Rd4 {[%clk 0:01:15]} 30. Qe2 {[%clk 0:02:18]}  Rxe4 {[%clk 0:01:15]} 31. Qxe4 {[%clk 0:02:18]}  b6 {[%clk 0:01:12]} 32. Re3 {[%clk 0:02:17]}  Re8 {[%clk 0:01:10]} 33. f4 {[%clk 0:02:16]}  Qd7 {[%clk 0:01:00]} 34. Kg2 {[%clk 0:02:12]}  Qd2+ {[%clk 0:00:59]} 35. Re2 {[%clk 0:02:12]}  Qc3 {[%clk 0:00:48]} 36. fxe5 {[%clk 0:02:11]}  Re6 {[%clk 0:00:49]} 37. Qe3 {[%clk 0:02:08]}  Qa1 {[%clk 0:00:47]} 38. Qf4 {[%clk 0:02:07]}  Qd1 {[%clk 0:00:44]} 39. Rf2 {[%clk 0:02:06]}  Qd7 {[%clk 0:00:44]} 40. g4 {[%clk 0:02:07]}  hxg4 {[%clk 0:00:44]} 41. hxg4 {[%clk 0:02:07]}  Kg7 {[%clk 0:00:45]} 42. Kg3 {[%clk 0:02:06]}  Qd3+ {[%clk 0:00:44]} 43. Kh4 {[%clk 0:02:04]}  Qd7 {[%clk 0:00:43]} 44. Rh2 {[%clk 0:02:00]}  Qd3 {[%clk 0:00:36]} 45. g5 {[%clk 0:01:51]}  a5 {[%clk 0:00:27]} 46. Rf2 {[%clk 0:01:46]}  Qd7 {[%clk 0:00:27]} 47. Rd2 {[%clk 0:01:45]}  Qe7 {[%clk 0:00:25]} 48. Rd5 {[%clk 0:01:42]}  Qe8 {[%clk 0:00:24]} 49. Kg4 {[%clk 0:01:41]}  Rc6 {[%clk 0:00:21]} 50. Rd6 {[%clk 0:01:40]}  Rxd6 {[%clk 0:00:18]} 51. exd6 {[%clk 0:01:40]}  Qe2+ {[%clk 0:00:18]} 52. Kg3 {[%clk 0:01:40]}  Qd3+ {[%clk 0:00:17]} 53. Kh4 {[%clk 0:01:40]}  Qd1 {[%clk 0:00:17]} 54. Qf6+ {[%clk 0:01:40]}  Kg8 {[%clk 0:00:16]} 55. Qd8+ {[%clk 0:01:39]}  Kg7 {[%clk 0:00:17]} 56. d7 {[%clk 0:01:39]}  Qd4+ {[%clk 0:00:15]} 57. Kg3 {[%clk 0:01:39]}  Qe3+ {[%clk 0:00:16]} 58. Kg4 {[%clk 0:01:39]}  Qe4+ {[%clk 0:00:16]} 59. Kg3 {[%clk 0:01:40]}  Qe3+ {[%clk 0:00:17]} 60. Kg2 {[%clk 0:01:39]}  Qe2+ {[%clk 0:00:17]} 61. Kg3 {[%clk 0:01:39]}  Qe3+ {[%clk 0:00:17]} 1/2-1/2


[Site "https://www.chess.com"]

[Event "Titled Tuesday Blitz February 07 Late 2023"]
[White "Marczuk, Dominik"]
[Black "Todev, Simeon"]
[WhiteFideId "1111264"]
[BlackFideId "2925133"]
[WhiteElo "2253"]
[BlackElo "2033"]
[Result "1-0"]
[Round "09"]
[TimeControl "180+2"]
[Date "2023.02.07"]
[WhiteClock "0:00:11"]
[BlackClock "0:00:18"]

1. e4 {[%clk 0:02:57]}  c5 {[%clk 0:03:00]} 2. Nf3 {[%clk 0:02:56]}  Nc6 {[%clk 0:02:58]} 3. d4 {[%clk 0:02:56]}  cxd4 {[%clk 0:02:55]} 4. Nxd4 {[%clk 0:02:54]}  e5 {[%clk 0:02:56]} 5. Nb5 {[%clk 0:02:53]}  a6 {[%clk 0:02:56]} 6. Nd6+ {[%clk 0:02:51]}  Bxd6 {[%clk 0:02:56]} 7. Qxd6 {[%clk 0:02:52]}  Qf6 {[%clk 0:02:57]} 8. Qxf6 {[%clk 0:02:30]}  Nxf6 {[%clk 0:02:58]} 9. f3 {[%clk 0:02:31]}  b5 {[%clk 0:02:58]} 10. a4 {[%clk 0:02:30]}  b4 {[%clk 0:02:57]} 11. Be3 {[%clk 0:02:22]}  Bb7 {[%clk 0:02:53]} 12. a5 {[%clk 0:02:16]}  Rc8 {[%clk 0:02:50]} 13. Bd3 {[%clk 0:02:09]}  d5 {[%clk 0:02:48]} 14. exd5 {[%clk 0:02:04]}  Nxd5 {[%clk 0:02:48]} 15. Kf2 {[%clk 0:01:29]}  O-O {[%clk 0:02:35]} 16. Nd2 {[%clk 0:01:28]}  Rfd8 {[%clk 0:02:29]} 17. Nc4 {[%clk 0:01:24]}  b3 {[%clk 0:02:25]} 18. cxb3 {[%clk 0:01:13]}  Nxe3 {[%clk 0:02:19]} 19. Kxe3 {[%clk 0:01:13]}  Nd4 {[%clk 0:01:44]} 20. Nb6 {[%clk 0:01:05]}  Rc6 {[%clk 0:01:39]} 21. Be4 {[%clk 0:00:37]}  Rcd6 {[%clk 0:01:10]} 22. Bxb7 {[%clk 0:00:33]}  Nc2+ {[%clk 0:01:10]} 23. Kf2 {[%clk 0:00:33]}  Rd2+ {[%clk 0:01:07]} 24. Kg3 {[%clk 0:00:34]}  Nxa1 {[%clk 0:01:05]} 25. Rxa1 {[%clk 0:00:35]}  Rxb2 {[%clk 0:01:06]} 26. Bxa6 {[%clk 0:00:29]}  Rxb3 {[%clk 0:01:04]} 27. Bc4 {[%clk 0:00:28]}  Rb4 {[%clk 0:01:02]} 28. a6 {[%clk 0:00:14]}  Rxb6 {[%clk 0:00:56]} 29. a7 {[%clk 0:00:13]}  Ra8 {[%clk 0:00:47]} 30. Bd5 {[%clk 0:00:13]}  Rbb8 {[%clk 0:00:43]} 31. axb8=Q+ {[%clk 0:00:11]}  Rxb8 {[%clk 0:00:44]} 32. Ra7 {[%clk 0:00:07]}  Rf8 {[%clk 0:00:43]} 33. Re7 {[%clk 0:00:07]}  Rd8 {[%clk 0:00:39]} 34. Rxe5 {[%clk 0:00:07]}  Kf8 {[%clk 0:00:39]} 35. Be4 {[%clk 0:00:05]}  f6 {[%clk 0:00:38]} 36. Ra5 {[%clk 0:00:05]}  h6 {[%clk 0:00:33]} 37. Ra7 {[%clk 0:00:05]}  Rd6 {[%clk 0:00:32]} 38. h4 {[%clk 0:00:05]}  Re6 {[%clk 0:00:30]} 39. h5 {[%clk 0:00:05]}  Re5 {[%clk 0:00:30]} 40. Kg4 {[%clk 0:00:05]}  Rg5+ {[%clk 0:00:30]} 41. Kh4 {[%clk 0:00:05]}  Rxg2 {[%clk 0:00:30]} 42. Bg6 {[%clk 0:00:05]}  Re2 {[%clk 0:00:25]} 43. Rf7+ {[%clk 0:00:05]}  Kg8 {[%clk 0:00:25]} 44. Rd7 {[%clk 0:00:05]}  Kf8 {[%clk 0:00:09]} 45. Rd8+ {[%clk 0:00:05]}  Ke7 {[%clk 0:00:09]} 46. Re8+ {[%clk 0:00:06]}  Kd6 {[%clk 0:00:10]} 47. Rxe2 {[%clk 0:00:06]}  f5 {[%clk 0:00:11]} 48. Kg3 {[%clk 0:00:06]}  Kd5 {[%clk 0:00:11]} 49. Kf4 {[%clk 0:00:07]}  Kd4 {[%clk 0:00:12]} 50. Re5 {[%clk 0:00:07]}  Kd3 {[%clk 0:00:13]} 51. Rxf5 {[%clk 0:00:08]}  Kd2 {[%clk 0:00:13]} 52. Rf7 {[%clk 0:00:09]}  Ke1 {[%clk 0:00:14]} 53. Rxg7 {[%clk 0:00:10]}  Kf2 {[%clk 0:00:14]} 54. Rh7 {[%clk 0:00:10]}  Kg1 {[%clk 0:00:15]} 55. Rxh6 {[%clk 0:00:11]}  Kh2 {[%clk 0:00:16]} 56. Rh7 {[%clk 0:00:12]}  Kh3 {[%clk 0:00:17]} 57. Rd7 {[%clk 0:00:13]}  Kh4 {[%clk 0:00:18]} 58. Rd1 {[%clk 0:00:12]}  Kh3 {[%clk 0:00:18]} 59. Rd2 {[%clk 0:00:13]}  Kh4 {[%clk 0:00:18]} 60. Rh2# {[%clk 0:00:11]} 1-0


[Site "https://www.chess.com"]